Workbook

Sheet Лист1
A1: Школа | C1: МБОУ "Благодатновская СОШ" НМР РТ | F1: Согласование: | G1: должность | H1: Директор
A2: Типовое примерное меню приготавливаемых блюд | G2: фамилия | H2: Комарова Ш.Г.
A3: Возрастная категория | E3: 7-11 лет | G3: дата | H3: 10 | I3: 2 | J3: 2025
H4: день | I4: месяц | J4: год
A5: Неделя | B5: День недели | C5: Прием пищи | D5: Раздел меню | E5: Блюда | F5: Вес блюда, г | G5: Белки | H5: Жиры | I5: Углеводы | J5: Калорийность | K5: № рецептуры | L5: Цена
A6: 1 | B6: 1 | C6: Завтрак | D6: доп.гарнир | E6: хлеб с сыром | F6: 30 | G6: 4.15 | H6: 2.82 | I6: 9.84 | J6: 81.33 | L6: 83.89
D7: гор.блюдо | E7: Котлеты Домашние с гречкой | F7: 90 | G7: 8.01 | H7: 11.14 | I7: 35.71 | J7: 248
D8: гарнир | E8: Макаронные изделия (рожки) отварные с маслом сливочным | F8: 155 | G8: 5.9 | H8: 4.58 | I8: 31.96 | J8: 191.2
D9: напиток | E9: Чай без сахара | F9: 200 | G9: 0.40 | H9: 0.10 | I9: 0.01 | J9: 2.80
D10: хлеб черн. | E10: Хлеб ржаной | F10: 25 | G10: 1.65 | H10: 0.3 | I10: 9.9 | J10: 49.5
D12: итого | F12: 500 | G12: =SUM(G6:G11) -> 20.11 | H12: =SUM(H6:H11) -> 18.94 | I12: 87.42 | J12: 572.83 | L12: =SUM(L6:L11) -> 83.89
A13: =A6 -> 1 | B13: =B6 -> 1 | C13: Обед
D20: итого | F20: =SUM(F13:F19) -> 0 | G20: =SUM(G13:G19) -> 0.00 | H20: =SUM(H13:H19) -> 0.00 | I20: =SUM(I13:I19) -> 0.00 | J20: =SUM(J13:J19) -> 0.00 | L20: =SUM(L13:L19) -> 0.00
A21: =A6 -> 1 | B21: =B6 -> 1 | C21: Итого за день: | F21: =F12+F20 -> 500 | G21: =G12+G20 -> 20.11 | H21: =H12+H20 -> 18.94 | I21: =I12+I20 -> 87.42 | J21: =J12+J20 -> 572.83 | L21: =L12+L20 -> 83.89
A22: 1 | B22: 2 | C22: Завтрак | D22: гор.блюдо | E22: Биточки куриные Солнышко | F22: 90 | G22: 6.01 | H22: 11.53 | I22: 12.88 | J22: 183.45 | L22: 83.89
D23: гарнир | E23: Каша пшеничная вязкая с маслом сливочным | F23: 153 | G23: 6.70 | H23: 4.38 | I23: 35.99 | J23: 227.00
D24: напиток | E24: Кофейный напиток с молоком | F24: 200 | G24: 3.17 | H24: 2.68 | I24: 9.98 | J24: 60.10
D25: хлеб бел. | E25: Хлеб пшеничный | F25: 30 | G25: 2.28 | H25: 0.24 | I25: 14.76 | J25: 70.50
D26: хлеб черн. | E26: Хлеб ржаной | F26: 30 | G26: 1.98 | H26: 0.36 | I26: 11.88 | J26: 59.40
D28: итого | F28: 503 | G28: =SUM(G22:G27) -> 20.14 | H28: =SUM(H22:H27) -> 19.19 | I28: =SUM(I22:I27) -> 85.49 | J28: =SUM(J22:J27) -> 600.45 | L28: =SUM(L22:L27) -> 83.89
A29: =A22 -> 1 | B29: =B22 -> 2 | C29: Обед
D36: итого | F36: =SUM(F29:F35) -> 0 | G36: =SUM(G29:G35) -> 0.00 | H36: =SUM(H29:H35) -> 0.00 | I36: =SUM(I29:I35) -> 0.00 | J36: =SUM(J29:J35) -> 0.00 | L36: =SUM(L29:L35) -> 0.00
A37: =A22 -> 1 | B37: =B22 -> 2 | C37: Итого за день: | F37: =F28+F36 -> 503 | G37: =G28+G36 -> 20.14 | H37: =H28+H36 -> 19.19 | I37: =I28+I36 -> 85.49 | J37: =J28+J36 -> 600.45 | L37: =L28+L36 -> 83.89
A38: 1 | B38: 3 | C38: Завтрак | D38: фрукты | E38: Яблоко | F38: 100 | G38: 0.4 | H38: 0.4 | I38: 9.8 | J38: 47 | L38: 83.89
D39: гор.блюдо | E39: Плов из куриной грудки | F39: 200 | G39: 15.42 | H39: 17.96 | I39: 38.93 | J39: 390.5
D40: гор.напиток | E40: Чай с сахаром и лимоном | F40: 200 | G40: 0.13 | H40: 0.02 | I40: 8.2 | J40: 34.02
D41: хлеб бел. | E41: Хлеб пшеничный | F41: 30 | G41: 2.28 | H41: 0.24 | I41: 14.76 | J41: 70.5
D42: хлеб черн. | E42: Хлеб ржаной | F42: 20 | G42: 1.32 | H42: 0.24 | I42: 7.92 | J42: 39.6
D44: итого | F44: 550 | G44: =SUM(G38:G43) -> 19.55 | H44: =SUM(H38:H43) -> 18.86 | I44: =SUM(I38:I43) -> 79.61 | J44: =SUM(J38:J43) -> 581.62 | L44: =SUM(L38:L43) -> 83.89
A45: =A38 -> 1 | B45: =B38 -> 3 | C45: Обед
D53: итого | F53: =SUM(F45:F52) -> 0 | G53: =SUM(G45:G52) -> 0 | H53: =SUM(H45:H52) -> 0 | I53: =SUM(I45:I52) -> 0 | J53: =SUM(J45:J52) -> 0 | L53: =SUM(L45:L52) -> 0.00
A54: =A38 -> 1 | B54: =B38 -> 3 | C54: Итого за день: | F54: 550 | G54: 19.55 | H54: 18.86 | I54: 79.61 | J54: 39 | L54: 83.89
A55: 1 | B55: 4 | C55: Завтрак | D55: гор.блюдо | E55: Овощи тушенные с мясом | F55: 200 | G55: 14.05 | H55: 15.97 | I55: 32.8 | J55: 374.45 | L55: 83.89
D56: доп.гарнир | E56: Капуста квашенная | F56: 50 | G56: 0.85 | H56: 2.5 | I56: 4.22 | J56: 42.85
D57: напиток | E57: Напиток из урюка | F57: 200 | G57: 0.75 | H57: 0.06 | I57: 15.95 | J57: 68.52
D58: хлеб бел. | E58: Хлеб пшеничный | F58: 30 | G58: 2.28 | H58: 0.24 | I58: 14.76 | J58: 70.5
D59: хлеб черн. | E59: Хлеб ржаной | F59: 30 | G59: 1.98 | H59: 0.36 | I59: 11.88 | J59: 59.4
D61: итого | F61: 510 | G61: =SUM(G55:G60) -> 19.91 | H61: =SUM(H55:H60) -> 19.13 | I61: =SUM(I55:I60) -> 79.61 | J61: =SUM(J55:J60) -> 615.72 | L61: =L55 -> 83.89
A62: =A55 -> 1 | B62: =B55 -> 4 | C62: Обед
D69: итого | F69: =SUM(F62:F68) -> 0 | G69: =SUM(G62:G68) -> 0 | H69: =SUM(H62:H68) -> 0 | I69: =SUM(I62:I68) -> 0 | J69: =SUM(J62:J68) -> 0 | L69: =SUM(L62:L68) -> 0.00
A70: =A55 -> 1 | B70: =B55 -> 4 | C70: Итого за день: | F70: =F61+F69 -> 510 | G70: =G61+G69 -> 19.91 | H70: 19.13 | I70: 79.61 | J70: 615.72 | L70: =L61+L69 -> 83.89
A71: 1 | B71: 5 | C71: Завтрак | D71: фрукты | E71: Яблоко | F71: 100 | G71: 0.40 | H71: 0.40 | I71: 9.80 | J71: 47.00 | L71: 83.89
D72: гор.блюдо | E72: Сырники из творога со сгущенным молоком | F72: 150 | G72: 15.55 | H72: 18.35 | I72: 36.03 | J72: 398.93
D73: гор.напиток | E73: Чай с сахаром | F73: 200 | G73: 0.07 | H73: 0.02 | I73: 8.00 | J73: 32.00
D74: хлеб бел. | E74: Хлеб пшеничный | F74: 30 | G74: 2.20 | H74: 0.24 | I74: 14.76 | J74: 70.50
D75: хлеб черн. | E75: Хлеб ржаной | F75: 30 | G75: 1.98 | H75: 0.36 | I75: 11.88 | J75: 59.40
D77: итого | F77: 510 | G77: =SUM(G71:G76) -> 20.2 | H77: =SUM(H71:H76) -> 19.37 | I77: =SUM(I71:I76) -> 80.47 | J77: =SUM(J71:J76) -> 607.83 | L77: =SUM(L71:L76) -> 83.89
A78: =A71 -> 1 | B78: =B71 -> 5 | C78: Обед
D85: итого | F85: =SUM(F78:F84) -> 0 | G85: =SUM(G78:G84) -> 0.00 | H85: =SUM(H78:H84) -> 0 | I85: =SUM(I78:I84) -> 0 | J85: =SUM(J78:J84) -> 0 | L85: =SUM(L78:L84) -> 0.00
A86: =A71 -> 1 | B86: =B71 -> 5 | C86: Итого за день: | F86: =F77+F85 -> 510 | G86: =G77+G85 -> 20.2 | H86: =H77+H85 -> 19.37 | I86: =I77+I85 -> 80.47 | J86: =J77+J85 -> 607.83 | L86: =L77+L85 -> 83.89
A87: 2 | B87: 1 | C87: Завтрак | D87: хлеб бел. | E87: Бутерброд с маслом сливочным | F87: 40 | G87: 2.36 | H87: 7.49 | I87: 14.89 | J87: 136.00 | L87: 83.89
D88: гор.блюдо | E88: Биточки рыбные | F88: 90 | G88: 10.68 | H88: 8.98 | I88: 16.21 | J88: 170.20
D89: гарнир | E89: Макаронные изделия (рожки) отварные с маслом сливочным | F89: 153 | G89: 5.68 | H89: 2.88 | I89: 31.96 | J89: 176.10
D90: напиток | E90: Чай с сахаром, с яблоком | F90: 200 | G90: 0.11 | H90: 0.06 | I90: 8.97 | J90: 36.68
D91: хлеб черн. | E91: Хлеб ржаной | F91: 20 | G91: 1.32 | H91: 0.24 | I91: 7.92 | J91: 39.60
D92: итого | F92: 500 | G92: =SUM(G87:G91) -> 20.15 | H92: =SUM(H87:H91) -> 19.65 | I92: =SUM(I87:I91) -> 79.95 | J92: =SUM(J87:J91) -> 558.58 | L92: =SUM(L87:L91) -> 83.89
A93: =A87 -> 2 | B93: =B87 -> 1 | C93: Обед
D101: итого | F101: =SUM(F93:F100) -> 0 | G101: =SUM(G93:G100) -> 0.00 | H101: =SUM(H93:H100) -> 0.00 | I101: =SUM(I93:I100) -> 0.00 | J101: =SUM(J93:J100) -> 0.00 | L101: =SUM(L93:L100) -> 0.00
A102: =A87 -> 2 | B102: =B87 -> 1 | C102: Итого за день: | F102: =F92+F101 -> 500 | G102: =G92+G101 -> 20.15 | H102: =H92+H101 -> 19.65 | I102: =I92+I101 -> 79.95 | J102: =J92+J101 -> 558.58 | L102: =L92+L101 -> 83.89
A103: 2 | B103: 2 | C103: Завтрак | D103: фрукты | E103: Яблоко | F103: 100 | G103: 0.4 | H103: 0.4 | I103: 9.80 | J103: 47.00 | L103: 83.89
D104: гор.блюдо | E104: Жаркое из птицы (куринных грудок) | F104: 200 | G104: 17.01 | H104: 18.47 | I104: 52.76 | J104: 473.54
D105: напиток | E105: Чай с сахаром | F105: 200 | G105: 0.07 | H105: 0.02 | I105: 8.00 | J105: 32.00
D106: хлеб черн. | E106: Хлеб ржаной | F106: 30 | G106: 1.98 | H106: 0.36 | I106: 11.88 | J106: 59.40
D109: итого | F109: =F103+F104+F105+F106 -> 530 | G109: =SUM(G103:G108) -> 19.46 | H109: =SUM(H103:H108) -> 19.25 | I109: =SUM(I103:I108) -> 82.44 | J109: =SUM(J103:J108) -> 611.94 | L109: =L103 -> 83.89
A110: =A103 -> 2 | B110: =B103 -> 2 | C110: Обед
D118: итого | F118: =SUM(F110:F117) -> 0 | G118: =SUM(G110:G117) -> 0.00 | H118: =SUM(H110:H117) -> 0 | I118: =SUM(I110:I117) -> 0 | J118: =SUM(J110:J117) -> 0 | L118: =SUM(L110:L117) -> 0.00
A119: =A103 -> 2 | B119: =B103 -> 2 | C119: Итого за день: | F119: =F109+F118 -> 530 | G119: =G109+G118 -> 19.46 | H119: =H109+H118 -> 19.25 | I119: =I109+I118 -> 82.44 | J119: =J109+J118 -> 611.94 | L119: =L109+L118 -> 83.89
A120: 2 | B120: 3 | C120: Завтрак | D120: гор.блюдо | E120: Котлеты Здоровье из куриных грудок | F120: 90 | G120: 11.2 | H120: 10.96 | I120: 24.82 | J120: 229.63 | L120: 83.89
D121: гарнир | E121: Каша гречневая вязкая с маслом сливочным | F121: 153 | G121: 4.6 | H121: 7.19 | I121: 20.56 | J121: 165.3
D122: напиток | E122: Чай с сахаром и лимоном | F122: 200 | G122: 0.13 | H122: 0.02 | I122: 8.2 | J122: 34.02
D123: хлеб бел. | E123: Хлеб пшеничный | F123: 30 | G123: 2.28 | H123: 0.24 | I123: 14.76 | J123: 70.5
D124: хлеб черн. | E124: Хлеб ржаной | F124: 30 | G124: 1.98 | H124: 0.36 | I124: 11.88 | J124: 59.4
D126: итого | F126: 503 | G126: =SUM(G120:G125) -> 20.19 | H126: =SUM(H120:H125) -> 18.77 | I126: =SUM(I120:I125) -> 80.22 | J126: =SUM(J120:J125) -> 558.85 | L126: =L120 -> 83.89
A127: =A120 -> 2 | B127: =B120 -> 3 | C127: Обед | L127: 83.89
D135: итого | F135: =SUM(F127:F134) -> 0 | G135: =SUM(G127:G134) -> 0.00 | H135: =SUM(H127:H134) -> 0.00 | I135: =SUM(I127:I134) -> 0.00 | J135: =SUM(J127:J134) -> 0.00
A136: =A120 -> 2 | B136: =B120 -> 3 | C136: Итого за день: | F136: =F126+F135 -> 503 | G136: =G126+G135 -> 20.19 | H136: =H126+H135 -> 18.77 | I136: =I126+I135 -> 80.22 | J136: =J126+J135 -> 558.85 | L136: =L126+L135 -> 83.89
A137: 2 | B137: 4 | C137: Завтрак | D137: сладкое | E137: Крекер | F137: 30 | G137: 2.7 | H137: 5.4 | I137: 14.2 | J137: 135 | L137: 83.89
D138: гор.блюдо | E138: Тефтели мясные с геркулесом | F138: 90 | G138: 8.86 | H138: 10.56 | I138: 6.76 | J138: 109.59
D139: гарнир | E139: Макаронные изделия (рожки отварные с маслом сливочным | F139: 153 | G139: 5.68 | H139: 2.88 | I139: 31.96 | J139: 176.1
D140: напиток | E140: Напиток из плодов шиповника | F140: 200 | G140: 0.6 | H140: 0.1 | I140: 20.2 | J140: 123.6
D141: хлеб бел. | E141: Хлеб пшеничный | F141: 30 | G141: 2.28 | H141: 0.24 | I141: 14.76 | J141: 70.5
D143: итого | F143: 503 | G143: =SUM(G137:G142) -> 20.12 | H143: =SUM(H137:H142) -> 19.18 | I143: =SUM(I137:I142) -> 87.88 | J143: =SUM(J137:J142) -> 614.79 | L143: =L137 -> 83.89
A144: =A137 -> 2 | B144: =B137 -> 4 | C144: Обед
D152: итого | F152: =SUM(F144:F151) -> 0 | G152: =SUM(G144:G151) -> 0 | H152: =SUM(H144:H151) -> 0 | I152: =SUM(I144:I151) -> 0 | J152: =SUM(J144:J151) -> 0 | L152: =SUM(L144:L151) -> 0.00
A153: =A137 -> 2 | B153: =B137 -> 4 | C153: Итого за день: | F153: =F143+F152 -> 503 | G153: =G143+G152 -> 20.12 | H153: =H143+H152 -> 19.18 | I153: =I143+I152 -> 87.88 | J153: =J143+J152 -> 614.79 | L153: =L143+L152 -> 83.89
A154: 2 | B154: 5 | C154: Завтрак | D154: фрукты | E154: Яблоки | F154: 100 | G154: 0.4 | H154: 0.4 | I154: 9.8 | J154: 47 | L154: 83.89
D155: гор.блюдо | E155: Гуляш из куриной грудки | F155: 100 | G155: 8.64 | H155: 9.83 | I155: 13.4 | J155: 209.39
D156: доп гарнир | E156: Пюре карофельное | F156: 150 | G156: 3.09 | H156: 4.98 | I156: 39.48 | J156: 177.55
D157: напиток | E157: Како с молоком | F157: 200 | G157: 4.08 | H157: 3.54 | I157: 2.61 | J157: 58.6
D158: хлеб бел. | E158: Хлеб пшеничный | F158: 30 | G158: 2.28 | H158: 0.24 | I158: 14.76 | J158: 70.5
D160: итого | F160: 580 | G160: =SUM(G154:G159) -> 18.49 | H160: =SUM(H154:H159) -> 18.99 | I160: =SUM(I154:I159) -> 80.05 | J160: =SUM(J154:J159) -> 563.04 | L160: =L154 -> 83.89
A161: =A154 -> 2 | B161: =B154 -> 5 | C161: Обед
D169: итого | F169: =SUM(F161:F168) -> 0 | G169: =SUM(G161:G168) -> 0 | H169: =SUM(H161:H168) -> 0 | I169: =SUM(I161:I168) -> 0 | J169: =SUM(J161:J168) -> 0 | L169: =SUM(L161:L168) -> 0.00
A170: =A154 -> 2 | B170: =B154 -> 5 | C170: Итого за день: | F170: =F160+F169 -> 580 | G170: =G160+G169 -> 18.49 | H170: =H160+H169 -> 18.99 | I170: =I160+I169 -> 80.05 | J170: =J160+J169 -> 563.04 | L170: =L160+L169 -> 83.89
C171: Среднее значение за период: | F171: =(F21+F37+F54+F70+F86+F102+F119+F136+F153+F170)/(IF(F21=0,0,1)+IF(F37=0,0,1)+IF(F54=0,0,1)+IF(F70=0,0,1)+IF(F86=0,0,1)+IF(F102=0,0,1)+IF(F119=0,0,1)+IF(F136=0,0,1)+IF(F153=0,0,1)+IF(F170=0,0,1)) -> 518.9 | G171: =(G21+G37+G54+G70+G86+G102+G119+G136+G153+G170)/(IF(G21=0,0,1)+IF(G37=0,0,1)+IF(G54=0,0,1)+IF(G70=0,0,1)+IF(G86=0,0,1)+IF(G102=0,0,1)+IF(G119=0,0,1)+IF(G136=0,0,1)+IF(G153=0,0,1)+IF(G170=0,0,1)) ->  | H171: =(H21+H37+H54+H70+H86+H102+H119+H136+H153+H170)/(IF(H21=0,0,1)+IF(H37=0,0,1)+IF(H54=0,0,1)+IF(H70=0,0,1)+IF(H86=0,0,1)+IF(H102=0,0,1)+IF(H119=0,0,1)+IF(H136=0,0,1)+IF(H153=0,0,1)+IF(H170=0,0,1)) -> 19.13 | I171: =(I21+I37+I54+I70+I86+I102+I119+I136+I153+I170)/(IF(I21=0,0,1)+IF(I37=0,0,1)+IF(I54=0,0,1)+IF(I70=0,0,1)+IF(I86=0,0,1)+IF(I102=0,0,1)+IF(I119=0,0,1)+IF(I136=0,0,1)+IF(I153=0,0,1)+IF(I170=0,0,1)) -> 82.314 | J171: =(J21+J37+J54+J70+J86+J102+J119+J136+J153+J170)/(IF(J21=0,0,1)+IF(J37=0,0,1)+IF(J54=0,0,1)+IF(J70=0,0,1)+IF(J86=0,0,1)+IF(J102=0,0,1)+IF(J119=0,0,1)+IF(J136=0,0,1)+IF(J153=0,0,1)+IF(J170=0,0,1)) -> 534.303 | L171: =(L21+L37+L54+L70+L86+L102+L119+L136+L153+L170)/(IF(L21=0,0,1)+IF(L37=0,0,1)+IF(L54=0,0,1)+IF(L70=0,0,1)+IF(L86=0,0,1)+IF(L102=0,0,1)+IF(L119=0,0,1)+IF(L136=0,0,1)+IF(L153=0,0,1)+IF(L170=0,0,1)) -> 83.89
